bitfinex-derivatives/quotes_SOLF0:USTF0_20241127
["timestamp","ask_amount","ask_price","bid_price","bid_amount"]
[1732685141786,2.1822,229.2,229.13,12.64665067]
[1732685142188,2.1822,229.2,229.15,2.1826]
[1732685142379,2.1823,229.19,229.13,12.64665067]
[1732685142585,2.3,229.22,229.13,2.583]
[1732685143083,2.1823,229.2,229.13,2.583]
[1732685143280,2.3,229.22,229.13,1.268]
[1732685143684,2.1823,229.2,229.13,1.268]
[1732685143884,2.3,229.22,229.13,1.268]
[1732685144389,2.1826,229.17,229.13,1.268]
[1732685144591,2.3,229.22,229.13,1.268]
[1732685145190,2.3,229.22,229.12,2.183]
[1732685145390,0.63431998,229.21,229.12,2.183]
[1732685146391,2.1826,229.17,229.12,2.183]
[1732685147595,2.00848786,229.17,229.12,2.183]
[1732685147795,2.3,229.22,229.12,2.183]
[1732685147796,2.1826,229.16,229.12,2.183]
[1732685149894,2.1826,229.16,229.06,1.2281]
[1732685149895,2.1829,229.13,229.08,2.1833]
[1732685150097,2.3,229.16,229.06,1.2281]
[1732685150399,2.3,229.15,229.06,1.2281]
[1732685150897,10.06365067,229.11,229.03,235.74463]
[1732685151199,2.17541988,229.19,229.03,235.74463]
[1732685151200,2.3,229.1,229.03,235.74463]
[1732685151397,2.3,229.12,229.04,1.09246663]
[1732685151597,2.3,229.12,229.03,235.74463]
[1732685151797,2.1833,229.1,229.05,2.1836]
[1732685151997,2.3,229.12,229.03,235.74463]
[1732685152301,2.1835,229.07,229.03,235.74463]
[1732685152497,2.3,229.12,229.03,235.74463]
[1732685153097,2.1837,229.04,229.03,235.74463]
[1732685155099,2.1837,229.05,229.03,235.74463]
[1732685155803,2.1837,229.04,229.03,235.74463]
[1732685156791,2.1833,229.09,229.03,235.74463]
[1732685156997,3.44225785,229.13,229.03,235.74463]
[1732685156998,2.3,229.1,229.03,235.74463]
[1732685157502,2.3,229.1,229.03,237.92843]
[1732685157710,3.44225785,229.13,229.03,237.92843]
[1732685157904,2.3,229.11,229.03,237.92843]
[1732685158504,2.1834,229.08,229.03,237.92843]
[1732685159708,2.1834,229.08,229.03,235.74463]
[1732685160604,2.1835,229.07,229.03,235.74463]
[1732685161400,2.3,229.11,229.03,235.74463]
[1732685161605,2.1837,229.05,229.03,235.74463]
[1732685162006,2.3,229.11,229.03,235.74463]
[1732685162211,0.63653934,229.1,229.03,235.74463]
[1732685162410,0.63654849,229.09,229.03,235.74463]
[1732685162617,0.63654849,229.1,229.03,235.74463]
[1732685162806,0.63655917,229.09,229.03,235.74463]
[1732685163007,2.3,229.11,229.03,235.74463]
[1732685163308,0.63652639,229.1,229.03,235.74463]
[1732685165010,2.1835,229.07,229.03,235.74463]
[1732685165414,2.3,229.11,229.03,235.74463]
[1732685165610,0.63645884,229.1,229.03,235.74463]
[1732685165809,0.63651145,229.09,229.03,235.74463]
[1732685166010,2.3,229.11,229.03,235.74463]
[1732685166212,2.1835,229.07,229.03,235.74463]
[1732685166412,8.74808907,229.11,229.03,242.19271907]
[1732685166611,0.63656373,229.1,229.03,235.74463]
[1732685166811,2.1834,229.08,229.03,235.74463]
[1732685167013,8.74808907,229.11,229.03,235.74463]
[1732685167318,0.63654642,229.1,229.03,235.74463]
[1732685167716,2.1834,229.08,229.03,235.74463]
[1732685167917,6.44808907,229.09,229.03,235.74463]
[1732685168117,2.3,229.11,229.03,235.74463]
[1732685168118,6.44808907,229.07,229.03,235.74463]
[1732685168418,2.1837,229.04,229.03,235.74463]
[1732685171818,4.4836,229.06,229.03,235.74463]
[1732685172016,2.3,229.06,229.03,235.74463]
[1732685173217,2.1837,229.05,229.03,235.74463]
[1732685174424,2.1837,229.04,229.03,235.74463]
[1732685174724,8.63178907,229.04,229.03,235.74463]
[1732685174919,9.26896298,229.04,229.03,176.40034994]
[1732685175123,9.26892728,229.04,229.03,174.37684994]
[1732685175428,9.26904759,229.04,229.03,172.35354994]
[1732685175626,9.26900419,229.04,229.03,172.35354994]
[1732685176319,12.90618084,229.04,229.03,162.24125496]
[1732685177715,12.90618084,229.04,229.03,110.3869749]
[1732685178723,12.26896572,229.04,229.03,110.3869749]
[1732685178924,12.90602018,229.04,229.03,110.3869749]
[1732685181323,12.90602018,229.04,229.03,49.93969986]
[1732685181528,2.1848,228.93,228.89,3.854]
[1732685181924,2.3,228.95,228.87,2.1853]
[1732685182119,2.1851,228.9,228.85,1.3257]
[1732685182323,14.59219563,228.95,228.85,1.3257]
[1732685182526,10.08526572,228.92,228.85,1.3257]
[1732685182728,2.1855,228.86,228.85,1.3257]
[1732685182922,10.08526572,228.92,228.81,1.2224]
[1732685182923,2.3,228.88,228.81,1.2224]
[1732685183230,2.1854,228.87,228.81,3.4083]
[1732685183826,2.3,228.88,228.82,2.1857]
[1732685184025,2.3,228.88,228.81,1.2224]
[1732685185225,2.1857,228.84,228.79,1.3028]
[1732685185427,10.08526572,228.89,228.79,1.3028]
[1732685185428,2.3,228.83,228.79,1.3028]
[1732685185630,2.3,228.83,228.75,1.3349]
[1732685186338,10.08526572,228.79,228.74,1.2896]
[1732685186531,2.3,228.78,228.74,1.2896]
[1732685186840,2.1864,228.76,228.74,1.2896]
[1732685187530,10.08526572,228.85,228.74,1.2896]
[1732685187732,2.32,228.84,228.74,1.2896]
[1732685187927,2.1861,228.8,228.74,1.2896]
[1732685188533,2.1859,228.82,228.74,3.4762]
[1732685188728,2.32,228.84,228.74,3.4762]
[1732685188934,10.08526572,228.85,228.74,1.2896]
[1732685189240,4.5058,228.83,228.76,2.1864]
[1732685189431,2.32,228.82,228.74,1.2896]
[1732685189632,2.32,228.83,228.74,1.2896]
[1732685189833,2.32,228.82,228.74,1.2896]
[1732685191340,4.5059,228.82,228.74,1.2896]
[1732685192233,4.5059,228.82,228.76,2.1864]
[1732685193334,2.32,228.86,228.74,11.37486572]
[1732685193538,2.32,228.86,228.74,13.69486572]
[1732685193844,2.32,228.86,228.77,10.08526572]
[1732685194138,2.3,228.88,228.78,1.2789]
[1732685194640,4.4853,228.88,228.82,2.1858]
[1732685194841,2.3,228.88,228.83,1.2894]
[1732685195436,2.1854,228.87,228.83,1.2894]
[1732685195639,2.3,228.88,228.83,1.2894]
[1732685195838,2.1856,228.84,228.83,1.2894]
[1732685196236,2.3,228.88,228.83,1.2894]
[1732685196434,2.1855,228.86,228.83,1.2894]
[1732685196742,2.3,228.88,228.83,1.2894]
[1732685197239,2.1854,228.87,228.83,1.2894]
[1732685197544,2.3,228.88,228.83,1.2894]
[1732685197743,2.1854,228.87,228.83,1.2894]
[1732685197935,2.3,228.88,228.83,1.2894]
[1732685198629,2.3,228.88,228.78,3.4651]
[1732685198630,2.3,228.88,228.78,1.2789]
[1732685198947,10.08526572,228.86,228.78,1.2789]
[1732685199245,2.3,228.88,228.78,1.2789]
[1732685200544,2.1858,228.83,228.78,1.2789]
[1732685200747,4.4858,228.83,228.78,1.2789]
[1732685200946,2.3,228.83,228.75,1.2505]
[1732685201346,2.1861,228.8,228.75,1.2505]
[1732685201847,2.1859,228.82,228.75,3.437]
[1732685202045,2.1859,228.82,228.75,1.2505]
[1732685202237,47.23,228.93,228.75,1.2505]
[1732685202238,10.08526572,228.87,228.75,1.2505]
[1732685202439,2.3,228.86,228.75,1.2505]
[1732685202644,10.08526572,228.87,228.75,1.2505]
[1732685202947,2.1857,228.84,228.78,2.1862]
[1732685204948,2.1857,228.84,228.75,1.2505]
[1732685204949,2.1858,228.83,228.75,1.2505]
[1732685205748,2.1858,228.83,228.77,2.1862]
[1732685206551,2.1858,228.83,228.78,2.1862]
[1732685208350,2.1859,228.82,228.77,2.1863]
[1732685208645,2.3,228.86,228.77,10.08526572]
[1732685208850,34.1,228.93,228.77,10.08526572]
[1732685208851,44.18526572,228.93,228.77,10.08526572]
[1732685209053,2.1853,228.88,228.84,2.1856]
[1732685209246,3.57500189,228.92,228.8,10.08526572]
[1732685209247,2.3,228.91,228.8,10.08526572]
[1732685209447,2.3,228.91,228.81,1.3487]
[1732685209640,2.1852,228.89,228.84,2.1856]
[1732685209841,2.3,228.91,228.85,1.2389]
[1732685211446,2.1852,228.89,228.85,1.2389]
[1732685212747,2.1851,228.9,228.85,3.4245]
[1732685215246,2.185,228.91,228.86,2.1855]
[1732685215445,0.63750002,228.92,228.85,1.2389]
[1732685215645,0.63750002,228.92,228.86,1.2961]
[1732685216558,0.63750002,228.92,228.87,2.1853]
[1732685216849,0.63750002,228.92,228.86,1.2961]
[1732685217953,2.1847,228.94,228.86,1.2961]
[1732685218157,2.3,229.0,228.86,11.38136572]
[1732685218351,2.3,229.0,228.89,10.08526572]
[1732685218652,2.1842,228.99,228.94,2.1846]
[1732685218853,2.3,229.0,228.94,2.1846]
[1732685220060,2.1842,228.99,228.94,2.1846]
[1732685220355,2.1842,228.99,228.9,1.2403]
[1732685220356,2.3,229.0,228.95,2.1845]
[1732685220851,4.4841,229.0,228.95,2.1845]
[1732685221656,2.1842,228.99,228.95,2.1845]
[1732685222559,2.3,229.0,228.96,2.1845]
[1732685224255,8.75267886,229.0,228.96,2.1845]
[1732685226958,6.45267886,228.98,228.9,1.2403]
[1732685227157,2.3,229.0,228.91,2.185]
[1732685227158,6.45267886,228.93,228.91,2.185]
[1732685227461,6.45267886,228.93,228.9,1.2403]
[1732685227758,6.45267886,228.95,228.91,2.1849]
[1732685228162,6.45267886,228.95,228.92,2.1848]
[1732685228758,6.45267886,228.96,228.92,2.1848]
[1732685230155,8.63717886,228.96,228.92,2.1848]
[1732685231652,6.45267886,228.94,228.87,2.1853]
[1732685231859,6.45267886,228.92,228.87,2.1853]
[1732685232057,6.45267886,228.92,228.86,1.64278]
[1732685232459,6.45267886,228.92,228.89,2.1852]
[1732685232663,2.1849,228.93,228.89,2.1852]
[1732685233059,2.3,228.95,228.89,6.45267886]
[1732685233262,6.45267886,228.97,228.89,6.45267886]
[1732685233455,0.63781869,228.96,228.89,6.45267886]
[1732685233660,6.45267886,228.97,228.89,6.45267886]
[1732685234363,6.45267886,228.95,228.87,7.73497886]
[1732685234964,2.1845,228.96,228.89,6.45267886]
[1732685235667,2.1845,228.96,228.91,2.185]
[1732685236764,4.3664,229.1,228.91,2.185]
[1732685236961,6.45267886,229.03,228.95,6.45267886]
[1732685237263,0.63750174,229.02,228.99,6.45267886]
[1732685237462,2.3,229.05,229.0,2.184]
[1732685237766,2.3,229.05,228.99,6.45267886]
[1732685237970,0.6379118,229.04,228.99,8.63677886]
[1732685238159,0.6379118,229.04,228.97,6.45267886]
[1732685238560,7.09059066,229.04,228.99,2.1842]
[1732685238869,6.45267886,229.0,228.96,2.6197]
[1732685239070,6.45267886,229.0,228.96,1.3383]
[1732685239765,6.45267886,229.0,228.96,3.5228]
[1732685239967,6.45267886,229.02,228.96,3.5228]
[1732685240267,2.3,229.05,228.97,2.1843]
[1732685240466,7.09055922,229.04,228.97,2.1843]
[1732685240667,0.63788036,229.03,228.96,7.79097886]
[1732685241062,2.1839,229.03,228.98,2.1842]
[1732685241262,2.3,229.05,228.96,7.79097886]
[1732685241263,8.75267886,229.05,228.96,7.79097886]
[1732685241470,0.63792298,229.04,228.96,7.79097886]
[1732685242367,0.63792298,229.04,228.98,6.45267886]
[1732685242573,34.1,229.21,228.96,3.6383]
[1732685242574,2.3,229.09,229.01,6.45267886]
[1732685242768,0.6379693,229.08,229.01,6.45267886]
[1732685242968,2.8213693,229.08,229.03,2.1838]
[1732685243167,2.8213693,229.08,229.01,6.45267886]
[1732685243168,0.6379693,229.07,229.01,6.45267886]
[1732685243364,2.3,229.09,229.05,2.1836]
[1732685243674,0.63800198,229.08,229.05,2.1836]
[1732685244573,0.63800198,229.08,229.03,6.45267886]
[1732685245068,4.4833,229.09,229.03,6.45267886]
[1732685245269,0.63800232,229.08,229.03,6.45267886]
[1732685247273,0.63800232,229.08,229.05,2.1836]
[1732685247469,0.63800232,229.08,229.03,6.45267886]
[1732685247665,4.4833,229.09,229.01,6.45267886]
[1732685247969,0.63759873,229.08,229.01,6.45267886]
[1732685248164,6.45267886,229.07,228.98,6.45267886]
[1732685248369,0.63759873,229.06,228.98,6.45267886]
[1732685249870,0.63759873,229.06,229.01,2.184]
[1732685250775,2.82119873,229.06,229.01,2.184]
[1732685250974,0.63721188,229.05,229.01,2.184]
[1732685251565,2.1836,229.06,229.01,2.184]
[1732685251774,0.63693384,229.05,229.01,2.184]
[1732685253566,6.45267886,229.03,228.97,2.5739]
[1732685253770,6.45267886,229.01,228.97,1.225]
[1732685254167,6.45267886,229.01,228.95,0.25907]
[1732685254168,6.45267886,228.99,228.95,0.25907]
[1732685254573,2.1844,228.98,228.95,0.25907]
[1732685255781,2.1842,229.0,228.95,2.44367]
[1732685255973,6.45267886,229.01,228.95,2.44367]
[1732685257478,6.45267886,229.01,228.95,0.25907]
[1732685257479,2.1842,228.99,228.95,0.25907]
[1732685257980,2.1843,228.98,228.95,0.25907]
[1732685258182,6.45267886,229.01,228.95,2.44367]
[1732685258776,2.1842,228.99,228.95,2.44367]
[1732685259774,2.1842,228.99,228.95,0.25907]
[1732685261482,2.1842,228.99,228.94,2.1847]
[1732685262385,6.45267886,229.01,228.94,2.1847]
[1732685262678,2.1843,228.98,228.94,2.1847]
[1732685263280,2.1843,228.98,228.93,6.45267886]
[1732685263281,2.1842,228.99,228.95,2.1846]
[1732685263483,6.45267886,229.01,228.93,6.45267886]
[1732685263682,8.63677886,229.01,228.96,2.1845]
[1732685263884,6.45267886,229.03,228.95,6.45267886]
[1732685264179,2.1838,229.04,228.99,8.63677886]
[1732685264382,2.3,229.07,229.01,6.45267886]
[1732685264581,8.75267886,229.08,229.01,6.45267886]
[1732685265380,2.3,229.08,229.01,6.45267886]
[1732685265785,4.4834,229.08,229.03,2.1837]
[1732685267786,2.1835,229.07,229.03,2.1837]
[1732685268291,2.1836,229.06,229.01,2.184]
[1732685269786,2.1836,229.06,229.02,2.1839]
[1732685273692,2.1835,229.07,228.99,6.45267886]
[1732685274484,2.1835,229.07,229.03,2.1838]
[1732685275789,6.45267886,229.08,229.04,2.1837]
[1732685275989,2.1833,229.09,229.04,2.1837]
[1732685276293,0.63776765,229.08,229.04,2.1837]
[1732685276489,2.1832,229.1,229.04,2.1837]
[1732685276692,0.63777377,229.09,229.03,6.45267886]
[1732685276993,0.63777377,229.09,229.06,2.1835]
[1732685277395,8.75267886,229.12,229.06,2.1835]
[1732685277396,2.1832,229.11,229.06,2.1835]
[1732685277589,0.63776025,229.1,229.06,2.1835]
[1732685277785,2.1832,229.11,229.06,2.1835]
[1732685277991,0.63774506,229.1,229.06,2.1835]
[1732685278595,2.1832,229.11,229.06,2.1835]
[1732685278798,8.75267886,229.12,229.05,2.1836]
[1732685278799,2.82094739,229.1,229.05,2.1836]
[1732685278993,8.63587886,229.1,229.05,2.1836]
[1732685280697,2.1833,229.09,229.05,2.1836]
[1732685281498,2.3,229.13,229.05,6.45267886]
[1732685281697,0.63771306,229.12,229.05,6.45267886]
[1732685281993,6.5416,229.38,229.09,6.45267886]
[1732685281994,2.1826,229.17,229.09,6.45267886]
[1732685282195,13.13,229.33,229.04,2.3]
[1732685282196,0.63779983,229.16,229.11,6.45267886]
[1732685282397,6.45267886,229.2,229.11,6.45267886]
[1732685282602,2.82023245,229.19,229.15,2.1827]
[1732685282799,0.63783245,229.18,229.15,2.1827]
[1732685283289,2.1824,229.19,229.15,2.1827]
[1732685283493,0.63780611,229.18,229.14,2.1828]
[1732685283891,2.1824,229.19,229.14,2.1828]
[1732685284096,0.63779898,229.18,229.14,2.1828]
[1732685286697,2.1824,229.19,229.14,2.1828]
[1732685286995,0.6377682,229.18,229.14,2.1828]
[1732685288391,0.6377682,229.18,229.15,2.1827]
[1732685289800,2.8201682,229.18,229.13,8.63547886]
[1732685290006,6.45267886,229.2,229.13,8.63547886]
[1732685290202,0.63780251,229.19,229.13,8.63547886]
[1732685291395,2.1825,229.18,229.13,8.63547886]
[1732685291996,2.1826,229.16,229.12,2.5873]
[1732685292399,6.45267886,229.18,229.12,2.5873]
[1732685292603,2.1828,229.15,229.12,2.5873]
[1732685292906,0.63749438,229.14,229.12,2.5873]
[1732685293604,2.1828,229.15,229.12,2.5873]
[1732685293806,8.75267886,229.22,229.13,6.45267886]
[1732685294007,8.75267886,229.22,229.12,2.5873]
[1732685294008,6.45267886,229.24,229.15,6.45267886]
[1732685294206,0.63757694,229.23,229.15,6.45267886]
[1732685295103,2.1823,229.19,229.15,8.63527886]
[1732685295298,0.63757694,229.18,229.15,6.45267886]
[1732685295503,2.1822,229.21,229.16,2.1825]
[1732685295705,0.6381675,229.2,229.17,6.45267886]
[1732685296309,0.6381675,229.19,229.17,6.45267886]
[1732685296511,22.05948985,229.33,229.17,6.45267886]
[1732685296701,2.1819,229.24,229.19,6.45267886]
[1732685297007,0.63810729,229.23,229.19,6.45267886]
[1732685297601,2.1819,229.24,229.19,6.45267886]
[1732685297806,2.1819,229.24,229.19,8.63487886]
[1732685298005,0.63806307,229.23,229.19,8.63487886]
[1732685298403,0.63806307,229.23,229.19,6.45267886]
[1732685298609,2.1819,229.24,229.2,2.1822]
[1732685298801,2.1819,229.24,229.19,6.45267886]
[1732685298802,2.1818,229.25,229.19,6.45267886]
[1732685299009,0.63813121,229.24,229.19,6.45267886]
[1732685299810,0.63813121,229.24,229.2,2.1822]
[1732685300108,2.1818,229.25,229.2,2.1822]
[1732685300617,2.1818,229.25,229.19,6.45267886]
[1732685301007,2.3,229.29,229.13,2.3]
[1732685301008,6.45267886,229.21,229.13,2.3]
[1732685302206,2.1822,229.2,229.16,2.1826]
[1732685302408,6.45267886,229.21,229.16,2.1826]
[1732685303215,8.63477886,229.21,229.16,2.1826]
[1732685304613,2.1822,229.2,229.16,2.1826]
[1732685305711,6.45267886,229.21,229.17,2.1825]
[1732685306117,6.45267886,229.23,229.17,2.1825]
[1732685307218,2.1822,229.21,229.16,2.1826]
[1732685307716,2.1822,229.21,229.14,6.45267886]
[1732685307918,2.1822,229.21,229.17,2.1825]
[1732685308918,2.1822,229.21,229.14,6.45267886]
[1732685309114,4.4818,229.24,229.18,6.45267886]
[1732685309616,2.1818,229.24,229.19,2.1822]
[1732685310215,6.45267886,229.27,229.18,6.45267886]
[1732685310423,6.45267886,229.27,229.2,6.45267886]
[1732685311221,2.1819,229.24,229.2,6.45267886]
[1732685312925,2.1819,229.24,229.2,8.63487886]
[1732685313926,22.05948985,229.33,229.2,6.45267886]
[1732685314122,2.1817,229.26,229.22,8.63467886]
[1732685314523,7.09073945,229.32,229.24,6.45267886]
[1732685314725,6.45267886,229.3,229.22,6.45267886]
[1732685315325,2.1816,229.27,229.23,2.1819]
[1732685317032,2.1816,229.27,229.22,8.63467886]
[1732685317326,6.45267886,229.3,229.2,1.291]
[1732685317327,6.45267886,229.24,229.2,1.291]
[1732685318229,2.1819,229.23,229.2,1.291]
[1732685319626,6.45267886,229.24,229.2,1.291]
[1732685319831,2.182,229.22,229.2,1.291]
[1732685321431,6.45267886,229.22,229.13,1.2675]
[1732685321732,2.3,229.23,229.13,1.2675]
[1732685321928,2.1821,229.21,229.17,8.63517886]
[1732685324631,2.1823,229.19,229.15,8.63537886]
[1732685324828,6.45267886,229.22,229.14,1.2258]
[1732685325033,0.63818036,229.21,229.14,1.2258]
[1732685325331,6.45267886,229.19,228.95,48.49733817]
[1732685325534,6.45267886,229.12,229.04,6.45267886]
[1732685325732,8.75267886,229.12,229.04,6.45267886]
[1732685326037,2.3,229.12,229.06,8.63617886]
[1732685326435,2.3,229.12,229.07,2.1834]
[1732685326833,4.52917385,229.19,229.1,6.45267886]
[1732685327029,2.1827,229.15,229.1,8.63587886]
[1732685327233,2.3,229.18,229.1,6.45267886]
[1732685327430,0.63793834,229.17,229.1,6.45267886]
[1732685327739,2.1827,229.15,229.1,6.45267886]
[1732685327928,6.45267886,229.17,229.1,6.45267886]
[1732685328133,0.63787957,229.16,229.1,6.45267886]
[1732685328335,2.3,229.18,229.1,6.45267886]
[1732685328534,2.1828,229.14,229.1,6.45267886]
[1732685328729,7.09043866,229.17,229.07,3.4942]
[1732685328730,6.45267886,229.17,229.08,6.45267886]
[1732685328935,6.45267886,229.15,229.07,1.3108]
[1732685329133,2.1831,229.11,229.07,1.3108]
[1732685330233,6.45267886,229.15,229.07,1.3108]
[1732685330437,0.6377243,229.14,229.07,1.3108]
[1732685330844,6.45267886,229.14,229.07,1.3108]
[1732685331341,2.183,229.12,229.07,3.4943]
[1732685332036,2.1834,229.08,228.99,2.1842]
[1732685332242,6.45267886,229.08,228.99,6.45267886]
[1732685332943,2.3,229.08,228.99,6.45267886]
[1732685333239,2.3,229.08,228.98,3.8283]
[1732685333442,6.45267886,229.06,228.98,3.8283]
[1732685334241,2.1838,229.04,228.98,6.0126]
[1732685334641,6.45267886,229.02,228.98,2.5694]
[1732685334838,2.1842,229.0,228.97,0.21272]
[1732685335042,6.45267886,229.02,228.97,0.21272]
[1732685335243,2.3,229.03,228.97,0.21272]
[1732685336241,8.75267886,229.03,228.97,0.21272]
[1732685337039,10.93657886,229.03,228.97,0.21272]
[1732685337240,4.4839,229.03,228.97,0.21272]
[1732685337545,2.184,229.02,228.97,0.21272]
[1732685338439,2.184,229.01,228.97,0.21272]
[1732685339038,4.4838,229.03,228.97,2.39702]
[1732685339842,2.1838,229.03,228.97,2.39702]
[1732685340038,4.4838,229.03,228.97,2.39702]
[1732685340449,2.1839,229.02,228.97,2.39702]
[1732685341645,4.4838,229.04,228.98,2.1842]
[1732685342045,2.3,229.04,228.98,2.1842]
[1732685343246,2.3,229.04,228.97,0.21272]
[1732685343449,6.45267886,229.03,228.97,0.21272]
[1732685343751,2.184,229.02,228.97,0.21272]
[1732685344448,2.3,229.04,228.98,8.63697886]
[1732685345052,6.45267886,229.1,229.02,6.45267886]
[1732685345252,2.93754868,229.09,229.02,6.45267886]
[1732685345453,2.3,229.09,229.02,6.45267886]
[1732685345751,2.1835,229.07,229.02,6.45267886]
[1732685345949,6.45267886,229.08,229.01,2.184]
[1732685346751,6.45267886,229.08,229.0,6.45267886]
[1732685347149,2.3,229.09,229.02,6.45267886]
[1732685347348,4.4833,229.09,229.03,2.1837]
[1732685347553,2.3,229.09,229.03,2.1837]
[1732685348046,2.1835,229.07,229.03,2.1837]
[1732685348243,6.45267886,229.1,229.02,6.45267886]
[1732685348444,2.3,229.09,229.04,6.45267886]
[1732685348645,2.1833,229.1,229.04,6.45267886]
[1732685350154,2.1833,229.1,229.06,2.1835]
[1732685351251,2.3,229.11,229.07,2.1834]
[1732685351457,6.45267886,229.12,229.07,2.1834]
[1732685351658,2.3,229.12,229.06,6.45267886]
[1732685352053,6.45267886,229.16,229.08,6.45267886]
[1732685352255,2.1826,229.16,229.11,2.183]
[1732685353458,6.45267886,229.13,229.06,1.2651]
[1732685353955,2.1829,229.14,229.09,2.1832]
[1732685354357,6.45267886,229.15,229.07,6.45267886]
[1732685354651,2.1828,229.14,229.09,2.1832]
[1732685354856,6.45267886,229.15,229.07,7.79337886]
[1732685355156,6.45267886,229.15,229.07,9.02917886]
[1732685356258,2.1828,229.15,229.1,2.1831]
[1732685356651,6.45267886,229.16,229.1,2.1831]
[1732685357056,2.3,229.18,229.1,2.1831]
[1732685357257,6.45267886,229.15,229.1,2.1831]
[1732685357754,2.1828,229.14,229.07,9.02917886]
[1732685358352,2.1828,229.14,229.07,2.5765]
[1732685359151,2.1828,229.14,229.09,2.1832]
[1732685360061,2.1828,229.14,229.1,2.1832]
[1732685361158,2.3,229.16,229.1,2.1832]
[1732685361361,2.1827,229.15,229.1,2.1832]
[1732685362762,2.1828,229.14,229.1,2.1832]
[1732685363860,2.1828,229.14,229.09,2.1833]
[1732685364060,2.1828,229.14,229.08,6.45267886]
[1732685365261,2.1828,229.14,229.1,2.1831]
[1732685367161,2.183,229.12,229.08,2.1833]
[1732685368061,2.1829,229.13,229.08,2.1833]
[1732685368461,2.1829,229.13,229.09,2.1833]
[1732685370865,6.45267886,229.18,229.09,6.45267886]
[1732685371063,2.3,229.19,229.11,6.45267886]
[1732685371260,56.11925505,229.33,229.11,6.45267886]
[1732685371459,8.63497886,229.2,229.14,2.1828]
[1732685371863,6.45267886,229.2,229.14,2.1828]
[1732685372458,2.1824,229.19,229.14,2.1828]
[1732685373062,2.1822,229.2,229.15,8.63527886]
[1732685373261,2.1822,229.2,229.15,2.1826]
[1732685375263,2.1822,229.2,229.13,6.45267886]
[1732685375264,2.1822,229.2,229.16,2.1826]
[1732685375470,2.1822,229.2,229.13,6.45267886]
[1732685376069,2.1822,229.2,229.15,2.1827]
[1732685377769,6.45267886,229.19,229.15,2.1827]
[1732685378070,6.45267886,229.19,229.09,2.3]
[1732685378071,6.45267886,229.17,229.09,2.3]
[1732685378266,6.45267886,229.17,229.08,6.45267886]
[1732685378467,8.63517886,229.17,229.13,2.1829]
[1732685379169,8.63517886,229.17,229.12,2.183]
[1732685379370,2.1826,229.16,229.12,2.183]
[1732685379676,6.45267886,229.17,229.12,2.183]
[1732685380769,8.63527886,229.17,229.13,2.1828]
[1732685385172,2.1828,229.14,229.1,2.1831]
[1732685385579,6.45267886,229.13,229.07,2.5765]
[1732685385780,6.45267886,229.09,228.91,6.06216727]
[1732685386078,6.45267886,229.09,229.01,6.45267886]
[1732685386475,8.63607886,229.09,229.01,6.45267886]
[1732685386871,8.63607886,229.09,229.03,2.1838]
[1732685386872,2.1834,229.08,229.03,2.1838]
[1732685387180,2.28,229.12,229.01,6.45267886]
[1732685387379,2.28,229.12,229.03,6.45267886]
[1732685387380,6.45267886,229.11,229.03,6.45267886]
[1732685388174,2.28,229.12,229.03,6.45267886]
[1732685388378,6.45267886,229.1,229.03,6.45267886]
[1732685388584,0.63675437,229.11,229.03,6.45267886]
[1732685388882,6.45267886,229.1,229.03,6.45267886]
[1732685389384,6.45267886,229.11,229.06,2.1835]
[1732685390281,2.28,229.12,229.06,2.1835]
[1732685390478,6.45267886,229.11,229.06,2.1835]
[1732685390874,6.45267886,229.11,229.03,6.45267886]
[1732685391782,2.28,229.12,229.05,2.1836]
[1732685391984,6.45267886,229.11,229.03,6.45267886]
[1732685393386,6.45267886,229.11,229.07,2.1835]
[1732685393785,6.45267886,229.11,229.03,6.45267886]
[1732685393985,6.45267886,229.11,229.08,2.1834]
[1732685396182,2.28,229.12,229.08,2.1834]